{"text_format":"1","workbook":"xlsx","n_sheets":2,"sheets":["جدول المعلم ","الجدول الرئيسي"],"not_rendered":{"charts":0,"images":1,"macros":1,"external_links":0,"defined_names":2,"comments":0,"pivot_tables":0},"unopened":[],"bounds":{"document_bytes":16777216,"sheet_cells":100000,"rows_first":2000,"rows_last":500,"rows_between":2000,"halvings":0,"cell_chars":16384,"cell_head_chars":4096},"cells_cut":0,"cells_raw":0,"read":"whole","date_system":"1900"}

{"sheet":"جدول المعلم ","index":0,"n_rows":29,"n_cols":14,"rows_kept":29,"cut":false,"hidden":false,"merged":[[1,0,1,8],[0,0,0,8],[2,6,2,7],[3,6,3,7],[5,12,5,13],[2,1,2,4],[3,1,3,4],[4,1,4,7],[4,0,5,0],[4,8,5,8],[19,0,20,0],[19,1,19,7],[19,8,20,8],[15,0,15,8],[16,0,16,8],[17,1,17,4],[17,6,17,7],[18,1,18,4],[18,6,18,7]]}
["مدرسة عمر بن عبد العزيز"]
["جدول الحصص الاسبوعية للعام الدراسي : 2021 / 2022 م "]
["المعلم/ة :",{"$f":"VLOOKUP($M$5,'الجدول الرئيسي'!$A$4:$AV$28,3,TRUE)","v":{"$error":"#N/A"}},{"$f":"VLOOKUP($M$5,'الجدول الرئيسي'!$A$4:$AV$28,7,FALSE)","v":{"$error":"#N/A"}},{"$f":"VLOOKUP($M$5,'الجدول الرئيسي'!$A$4:$AV$28,7,FALSE)","v":{"$error":"#N/A"}},{"$f":"VLOOKUP($M$5,'الجدول الرئيسي'!$A$4:$AV$28,7,FALSE)","v":{"$error":"#N/A"}},null,"الصف: ",null,{"$f":"VLOOKUP($M$5,'الجدول الرئيسي'!$A$4:$AV$28,5,FALSE)","v":{"$error":"#N/A"}}]
["   المادة : ",{"$f":"VLOOKUP($M$5,'الجدول الرئيسي'!$A$4:$AV$28,4,TRUE)","v":{"$error":"#N/A"}},{"$f":"VLOOKUP($M$5,'الجدول الرئيسي'!$A$4:$AV$28,7,FALSE)","v":{"$error":"#N/A"}},{"$f":"VLOOKUP($M$5,'الجدول الرئيسي'!$A$4:$AV$28,7,FALSE)","v":{"$error":"#N/A"}},{"$f":"VLOOKUP($M$5,'الجدول الرئيسي'!$A$4:$AV$28,7,FALSE)","v":{"$error":"#N/A"}},null,"عدد الحصص :",null,{"$f":"VLOOKUP($M$5,'الجدول الرئيسي'!$A$4:$AV$28,6,TRUE)","v":{"$error":"#N/A"}}]
["اليوم","الحصص ",null,null,null,null,null,null,"ملاحظات ",null,null,"رقم المعلم ","17",22]
[null,1,2,3,4,5,6,7,null,null,null,"الإسم ",{"$f":"IF(M5=\"\",\"\",VLOOKUP(M5,'الجدول الرئيسي'!$A$4:$AV$28,3,0))","v":{"$error":"#N/A"}}]
["السبت",{"$f":"VLOOKUP($M$5,'الجدول الرئيسي'!$A$4:$AV$28,14,TRUE)","v":{"$error":"#N/A"}},{"$f":"VLOOKUP($M$5,'الجدول الرئيسي'!$A$4:$AV$28,15,TRUE)","v":{"$error":"#N/A"}},{"$f":"VLOOKUP($M$5,'الجدول الرئيسي'!$A$4:$AV$28,16,TRUE)","v":{"$error":"#N/A"}},{"$f":"VLOOKUP($M$5,'الجدول الرئيسي'!$A$4:$AV$28,17,TRUE)","v":{"$error":"#N/A"}},{"$f":"VLOOKUP($M$5,'الجدول الرئيسي'!$A$4:$AV$28,18,TRUE)","v":{"$error":"#N/A"}},{"$f":"VLOOKUP($M$5,'الجدول الرئيسي'!$A$4:$AV$28,19,TRUE)","v":{"$error":"#N/A"}},{"$f":"VLOOKUP($M$5,'الجدول الرئيسي'!$A$4:$AV$28,20,TRUE)","v":{"$error":"#N/A"}}]
["الاحد",{"$f":"VLOOKUP($M$5,'الجدول الرئيسي'!$A$4:$AV$28,21,TRUE)","v":{"$error":"#N/A"}},{"$f":"VLOOKUP($M$5,'الجدول الرئيسي'!$A$4:$AV$28,22,TRUE)","v":{"$error":"#N/A"}},{"$f":"VLOOKUP($M$5,'الجدول الرئيسي'!$A$4:$AV$28,23,TRUE)","v":{"$error":"#N/A"}},{"$f":"VLOOKUP($M$5,'الجدول الرئيسي'!$A$4:$AV$28,24,TRUE)","v":{"$error":"#N/A"}},{"$f":"VLOOKUP($M$5,'الجدول الرئيسي'!$A$4:$AV$28,25,TRUE)","v":{"$error":"#N/A"}},{"$f":"VLOOKUP($M$5,'الجدول الرئيسي'!$A$4:$AV$28,26,TRUE)","v":{"$error":"#N/A"}},{"$f":"VLOOKUP($M$5,'الجدول الرئيسي'!$A$4:$AV$28,27,TRUE)","v":{"$error":"#N/A"}}]
["الاثنين",{"$f":"VLOOKUP($M$5,'الجدول الرئيسي'!$A$4:$AV$28,28,TRUE)","v":{"$error":"#N/A"}},{"$f":"VLOOKUP($M$5,'الجدول الرئيسي'!$A$4:$AV$28,29,TRUE)","v":{"$error":"#N/A"}},{"$f":"VLOOKUP($M$5,'الجدول الرئيسي'!$A$4:$AV$28,30,TRUE)","v":{"$error":"#N/A"}},{"$f":"VLOOKUP($M$5,'الجدول الرئيسي'!$A$4:$AV$28,31,TRUE)","v":{"$error":"#N/A"}},{"$f":"VLOOKUP($M$5,'الجدول الرئيسي'!$A$4:$AV$28,32,TRUE)","v":{"$error":"#N/A"}},{"$f":"VLOOKUP($M$5,'الجدول الرئيسي'!$A$4:$AV$28,33,TRUE)","v":{"$error":"#N/A"}},{"$f":"VLOOKUP($M$5,'الجدول الرئيسي'!$A$4:$AV$28,34,TRUE)","v":{"$error":"#N/A"}}]
["الثلاثاء",{"$f":"VLOOKUP($M$5,'الجدول الرئيسي'!$A$4:$AV$28,35,FALSE)","v":{"$error":"#N/A"}},{"$f":"VLOOKUP($M$5,'الجدول الرئيسي'!$A$4:$AV$28,36,TRUE)","v":{"$error":"#N/A"}},{"$f":"VLOOKUP($M$5,'الجدول الرئيسي'!$A$4:$AV$28,37,TRUE)","v":{"$error":"#N/A"}},{"$f":"VLOOKUP($M$5,'الجدول الرئيسي'!$A$4:$AV$28,38,TRUE)","v":{"$error":"#N/A"}},{"$f":"VLOOKUP($M$5,'الجدول الرئيسي'!$A$4:$AV$28,39,TRUE)","v":{"$error":"#N/A"}},{"$f":"VLOOKUP($M$5,'الجدول الرئيسي'!$A$4:$AV$28,40,TRUE)","v":{"$error":"#N/A"}},{"$f":"VLOOKUP($M$5,'الجدول الرئيسي'!$A$4:$AV$28,41,TRUE)","v":{"$error":"#N/A"}},null,null,null,null,"16"]
["الاربعاء",{"$f":"VLOOKUP($M$5,'الجدول الرئيسي'!$A$4:$BC$28,42,TRUE)","v":{"$error":"#N/A"}},{"$f":"VLOOKUP($M$5,'الجدول الرئيسي'!$A$4:$BC$28,43,TRUE)","v":{"$error":"#N/A"}},{"$f":"VLOOKUP($M$5,'الجدول الرئيسي'!$A$4:$BC$28,44,TRUE)","v":{"$error":"#N/A"}},{"$f":"VLOOKUP($M$5,'الجدول الرئيسي'!$A$4:$BC$28,45,TRUE)","v":{"$error":"#N/A"}},{"$f":"VLOOKUP($M$5,'الجدول الرئيسي'!$A$4:$BC$28,46,TRUE)","v":{"$error":"#N/A"}},{"$f":"VLOOKUP($M$5,'الجدول الرئيسي'!$A$4:$BC$28,47,TRUE)","v":{"$error":"#N/A"}},{"$f":"VLOOKUP($M$5,'الجدول الرئيسي'!$A$4:$BC$28,48,TRUE)","v":{"$error":"#N/A"}}]
["الخميس ",{"$f":"VLOOKUP($M$5,'الجدول الرئيسي'!$A$4:$BC$28,49,TRUE)","v":{"$error":"#N/A"}},{"$f":"VLOOKUP($M$5,'الجدول الرئيسي'!$A$4:$BC$28,50,TRUE)","v":{"$error":"#N/A"}},{"$f":"VLOOKUP($M$5,'الجدول الرئيسي'!$A$4:$BC$28,51,TRUE)","v":{"$error":"#N/A"}},{"$f":"VLOOKUP($M$5,'الجدول الرئيسي'!$A$4:$BC$28,52,TRUE)","v":{"$error":"#N/A"}},{"$f":"VLOOKUP($M$5,'الجدول الرئيسي'!$A$4:$BC$28,53,TRUE)","v":{"$error":"#N/A"}},{"$f":"VLOOKUP($M$5,'الجدول الرئيسي'!$A$4:$BC$28,54,TRUE)","v":{"$error":"#N/A"}},{"$f":"VLOOKUP($M$5,'الجدول الرئيسي'!$A$4:$BC$28,55,TRUE)","v":{"$error":"#N/A"}},{"$f":"VLOOKUP($M$5,'الجدول الرئيسي'!$A$4:$BC$28,42,FALSE)","v":{"$error":"#N/A"}}]
[]
[null,null,null,null,null,"الإدارة :......................................"]
[]
["مدرسة عمر بن عبد العزيز"]
["جدول الحصص الاسبوعية للعام الدراسي : 2021 / 2022 م "]
["المعلم/ة :",{"$f":"VLOOKUP($N$5,'الجدول الرئيسي'!$A$4:$AV$28,3,FALSE)","v":"سراج حريبش"},{"$f":"VLOOKUP($M$5,'الجدول الرئيسي'!$A$4:$AV$28,7,FALSE)","v":{"$error":"#N/A"}},{"$f":"VLOOKUP($M$5,'الجدول الرئيسي'!$A$4:$AV$28,7,FALSE)","v":{"$error":"#N/A"}},{"$f":"VLOOKUP($M$5,'الجدول الرئيسي'!$A$4:$AV$28,7,FALSE)","v":{"$error":"#N/A"}},null,"الصف: ",null,{"$f":"VLOOKUP($N$5,'الجدول الرئيسي'!$A$4:$AV$28,5,FALSE)","v":0}]
["   المادة : ",{"$f":"VLOOKUP($N$5,'الجدول الرئيسي'!$A$4:$AV$28,4,FALSE)","v":"التربية الفنية"},{"$f":"VLOOKUP($M$5,'الجدول الرئيسي'!$A$4:$AV$28,7,FALSE)","v":{"$error":"#N/A"}},{"$f":"VLOOKUP($M$5,'الجدول الرئيسي'!$A$4:$AV$28,7,FALSE)","v":{"$error":"#N/A"}},{"$f":"VLOOKUP($M$5,'الجدول الرئيسي'!$A$4:$AV$28,7,FALSE)","v":{"$error":"#N/A"}},null,"عدد الحصص :",null,{"$f":"VLOOKUP($N$5,'الجدول الرئيسي'!$A$4:$AV$28,6,FALSE)","v":4}]
["اليوم","الحصص ",null,null,null,null,null,null,"ملاحظات "]
[null,1,2,3,4,5,6,7]
["السبت",{"$f":"VLOOKUP($N$5,'الجدول الرئيسي'!$A$4:$AV$28,14,FALSE)","v":0},{"$f":"VLOOKUP($N$5,'الجدول الرئيسي'!$A$4:$AV$28,15,FALSE)","v":0},{"$f":"VLOOKUP($N$5,'الجدول الرئيسي'!$A$4:$AV$28,16,FALSE)","v":0},{"$f":"VLOOKUP($N$5,'الجدول الرئيسي'!$A$4:$AV$28,17,FALSE)","v":"4أ"},{"$f":"VLOOKUP($N$5,'الجدول الرئيسي'!$A$4:$AV$28,18,FALSE)","v":0},{"$f":"VLOOKUP($N$5,'الجدول الرئيسي'!$A$4:$AV$28,19,FALSE)","v":"5أ"},{"$f":"VLOOKUP($N$5,'الجدول الرئيسي'!$A$4:$AV$28,20,FALSE)","v":0}]
["الاحد",{"$f":"VLOOKUP($N$5,'الجدول الرئيسي'!$A$4:$AV$28,21,FALSE)","v":0},{"$f":"VLOOKUP($N$5,'الجدول الرئيسي'!$A$4:$AV$28,22,FALSE)","v":0},{"$f":"VLOOKUP($N$5,'الجدول الرئيسي'!$A$4:$AV$28,23,FALSE)","v":0},{"$f":"VLOOKUP($N$5,'الجدول الرئيسي'!$A$4:$AV$28,24,FALSE)","v":"5ب"},{"$f":"VLOOKUP($N$5,'الجدول الرئيسي'!$A$4:$AV$28,25,FALSE)","v":"4ب"},{"$f":"VLOOKUP($N$5,'الجدول الرئيسي'!$A$4:$AV$28,26,FALSE)","v":0},{"$f":"VLOOKUP($N$5,'الجدول الرئيسي'!$A$4:$AV$28,27,FALSE)","v":0}]
["الاثنين",{"$f":"VLOOKUP($N$5,'الجدول الرئيسي'!$A$4:$AV$28,28,FALSE)","v":0},{"$f":"VLOOKUP($N$5,'الجدول الرئيسي'!$A$4:$AV$28,29,FALSE)","v":0},{"$f":"VLOOKUP($N$5,'الجدول الرئيسي'!$A$4:$AV$28,30,FALSE)","v":0},{"$f":"VLOOKUP($N$5,'الجدول الرئيسي'!$A$4:$AV$28,31,FALSE)","v":0},{"$f":"VLOOKUP($N$5,'الجدول الرئيسي'!$A$4:$AV$28,32,FALSE)","v":0},{"$f":"VLOOKUP($N$5,'الجدول الرئيسي'!$A$4:$AV$28,33,FALSE)","v":0},{"$f":"VLOOKUP($N$5,'الجدول الرئيسي'!$A$4:$AV$28,34,FALSE)","v":0}]
["الثلاثاء",{"$f":"VLOOKUP($N$5,'الجدول الرئيسي'!$A$4:$AV$28,35,FALSE)","v":0},{"$f":"VLOOKUP($N$5,'الجدول الرئيسي'!$A$4:$AV$28,36,FALSE)","v":0},{"$f":"VLOOKUP($N$5,'الجدول الرئيسي'!$A$4:$AV$28,37,FALSE)","v":0},{"$f":"VLOOKUP($N$5,'الجدول الرئيسي'!$A$4:$AV$28,38,FALSE)","v":0},{"$f":"VLOOKUP($N$5,'الجدول الرئيسي'!$A$4:$AV$28,39,FALSE)","v":0},{"$f":"VLOOKUP($N$5,'الجدول الرئيسي'!$A$4:$AV$28,40,FALSE)","v":0},{"$f":"VLOOKUP($M$5,'الجدول الرئيسي'!$A$4:$AV$28,41,FALSE)","v":{"$error":"#N/A"}}]
["الاربعاء",{"$f":"VLOOKUP($N$5,'الجدول الرئيسي'!$A$4:$BC$28,42,FALSE)","v":0},{"$f":"VLOOKUP($N$5,'الجدول الرئيسي'!$A$4:$BC$28,43,FALSE)","v":0},{"$f":"VLOOKUP($N$5,'الجدول الرئيسي'!$A$4:$BC$28,44,FALSE)","v":0},{"$f":"VLOOKUP($N$5,'الجدول الرئيسي'!$A$4:$BC$28,45,FALSE)","v":0},{"$f":"VLOOKUP($N$5,'الجدول الرئيسي'!$A$4:$BC$28,46,FALSE)","v":0},{"$f":"VLOOKUP($N$5,'الجدول الرئيسي'!$A$4:$BC$28,47,FALSE)","v":0},{"$f":"VLOOKUP($N$5,'الجدول الرئيسي'!$A$4:$BC$28,48,FALSE)","v":0}]
["الخميس ",{"$f":"VLOOKUP($N$5,'الجدول الرئيسي'!$A$4:$BC$28,49,FALSE)","v":0},{"$f":"VLOOKUP($N$5,'الجدول الرئيسي'!$A$4:$BC$28,50,FALSE)","v":0},{"$f":"VLOOKUP($N$5,'الجدول الرئيسي'!$A$4:$BC$28,51,FALSE)","v":0},{"$f":"VLOOKUP($N$5,'الجدول الرئيسي'!$A$4:$BC$28,52,FALSE)","v":0},{"$f":"VLOOKUP($N$5,'الجدول الرئيسي'!$A$4:$BC$28,53,FALSE)","v":0},{"$f":"VLOOKUP($N$5,'الجدول الرئيسي'!$A$4:$BC$28,54,FALSE)","v":0},{"$f":"VLOOKUP($N$5,'الجدول الرئيسي'!$A$4:$BC$28,55,FALSE)","v":0},{"$f":"VLOOKUP($M$5,'الجدول الرئيسي'!$A$4:$BC$28,42,FALSE)","v":{"$error":"#N/A"}}]
[]
[null,null,null,null,null,"الإدارة :......................................"]

{"sheet":"الجدول الرئيسي","index":1,"n_rows":28,"n_cols":55,"rows_kept":28,"cut":false,"hidden":false,"merged":[[27,0,27,5],[1,6,1,12],[1,20,1,26],[1,27,1,33],[1,34,1,40],[0,0,0,54],[1,48,1,54],[1,0,2,0],[1,2,2,2],[1,3,2,3],[1,4,2,4],[1,5,2,5],[1,41,1,47],[1,13,1,19]]}
["جـــــــــــــدول الـــــحــصـــص الأســبـــــوعـــــــــــي الاساسي للعام الدراسي : 2021 - 2022 م مدرسة  / عمر بن عبد العزيز للفترة المســائية "]
["ر.م",null,"اســــم الــــمعـلـم","المادة ","الصف ","عدد الحصص","السبت",null,null,null,null,null,null,"السبـــــــــت",null,null,null,null,null,null,"الاحــــــــــــــــــد",null,null,null,null,null,null,"الاثــنــــــيــن",null,null,null,null,null,null,"الثـــــلاثـــــاء",null,null,null,null,null,null,"الاربعـــــــــــــــاء",null,null,null,null,null,null,"الـــخميــــس"]
[null,null,null,null,null,null,1,2,3,4,5,6,7,1,2,3,4,5,6,7,1,2,3,4,5,6,7,1,2,3,4,5,6,7,1,2,3,4,5,6,7,1,2,3,4,5,6,7,1,2,3,4,5,6,7]
[1,{"$f":"$A$4","v":1},"علي المهدي الشافعي","تربية اسلامية",null,{"$f":"COUNTA(G4:BC4)","v":6},null,null,null,null,null,null,null,"1أ","3ب",null,null,null,null,null,"1ب","3ب",null,null,null,null,null,"2أ",null,null,null,null,null,null,null,null,null,null,null,null,null,null,null,null,null,null,null,null,"2ب"]
[{"$f":"--'جدول المعلم '!M5","v":17},{"$f":"$A$4","v":1},"عمران سالم","لغة عربية",null,{"$f":"COUNTA(G5:BC5)","v":10},null,null,null,null,null,null,null,null,null,null,"1أ",null,null,null,null,"1ب",null,null,null,null,null,"1أ","1أ",null,null,null,null,null,null,"1ب","1ب",null,null,null,null,null,null,"1أ","1أ",null,null,null,null,null,null,"1ب","1ب"]
[3,1,"اسعد جمعة","لغة عربية",null,10,null,null,null,null,null,null,null,null,"2أ","2أ",null,null,null,null,null,"2ب","2ب",null,null,null,null,null,"2أ",null,null,null,null,null,null,null,null,"2ب","2ب",null,null,"2أ","2أ",null,null,null,null,null,null,"2ب"]
[4,1,"صابر غريبة","لغة عربية",null,10,null,null,null,null,null,null,null,null,null,null,"3أ","3أ",null,null,null,null,null,"3ب",null,null,null,null,null,"3أ",null,null,null,null,null,"3ب","3ب",null,null,null,null,null,null,null,"3أ","3أ",null,null,null,null,null,"3ب","3ب"]
[5,1,"خيري ابوعمود","لغة عربية وتربية اسلامية",null,10,null,null,null,null,null,null,null,null,"4أ","4أ",null,null,null,null,null,"4ب","4ب",null,null,null,null,null,"4أ","4أ",null,null,null,null,null,null,"4ب",null,null,null,null,null,null,"4أ",null,null,null,null,null,"4ب","4ب"]
[6,1,"سالم الجابري","لغة عربية وتربية اسلامية",null,{"$f":"COUNTA(G9:BC9)","v":10},null,null,null,null,null,null,null,null,"5أ",null,null,null,null,null,"5ب",null,"5ب",null,null,null,null,"5أ",null,"5أ",null,null,null,null,null,"5ب","5ب",null,null,null,null,"5أ","5أ",null,null,null,null,null,"5ب"]
[7,1,"حسن صابر","لغة عربية وتربية اسلامية",null,14,null,null,null,null,null,null,null,"6أ","6أ",null,null,null,null,null,null,null,null,"6ب","6ب",null,null,null,null,null,"6أ",null,"6أ",null,"6ب","6ب",null,null,null,null,null,null,"6أ",null,"6أ",null,"6أ",null,null,"6ب",null,"6ب",null,"6ب"]
[8,1,"محمد المعوال","الرياضيات",null,8,null,null,null,null,null,null,null,null,"1أ",null,null,null,null,null,null,null,"1ب",null,null,null,null,null,null,null,"1أ","1أ",null,null,null,null,null,"1ب",null,null,null,null,"1أ",null,null,null,null,null,"1ب","1ب"]
[9,1,"غيث احمد","الرياضيات",null,8,null,null,null,null,null,null,null,"2أ",null,null,null,null,null,null,"2ب",null,null,null,null,null,null,null,null,"2أ",null,null,null,null,"2ب",null,"2ب",null,null,null,null,null,null,"2أ","2أ",null,null,null,null,null,"2ب"]
[10,1,"صلاح ابوعمود","الرياضيات",null,8,null,null,null,null,null,null,null,"3أ",null,null,null,null,null,null,"3ب",null,null,null,null,null,null,"3أ","3أ",null,null,null,null,null,"3ب",null,null,null,null,null,null,null,"3أ",null,null,null,null,null,"3ب","3ب"]
[11,1,"شريف الوافي","الرياضيات",null,8,null,null,null,null,null,null,null,"4أ",null,null,null,null,null,null,"4ب",null,null,null,null,null,null,"4أ",null,null,null,null,null,null,"4ب","4ب",null,null,null,null,null,"4أ","4أ",null,null,null,null,null,"4ب"]
[12,null,"حسن البكوري","الرياضيات",null,14,null,null,null,null,null,null,null,null,null,null,"6أ","5أ",null,null,"6ب","5ب",null,null,null,null,null,"6أ","5أ",null,null,null,null,null,"5ب",null,"6ب",null,null,null,null,null,null,"6أ","5أ","5أ",null,null,"6ب",null,"5ب","5ب"]
[13,null,"سالم الاحمر","اللغة الانجليزية",null,8,null,null,null,null,null,null,null,null,null,"1أ","2أ",null,null,null,null,null,null,"1ب","2ب",null,null,null,null,null,"2أ",null,null,null,"1ب","2ب",null,null,null,null,null,"1أ"]
[14,null,"علي دعباج","اللغة الانجليزية",null,8,null,null,null,null,null,null,null,null,null,"3أ",null,"4أ",null,null,null,null,"3ب","4ب",null,null,null,null,null,null,"4أ","3أ",null,null,null,null,null,null,null,null,null,null,null,null,null,null,null,null,null,null,"3ب","4ب"]
[15,null,"امحمد الشافعي","اللغة الانجليزية",null,8,null,null,null,null,null,null,null,null,null,"5أ",null,"6أ",null,null,null,null,"6ب",null,"5ب",null,null,null,null,"6أ","5أ",null,null,null,null,null,null,"5ب","6ب"]
[16,null,"احمد سنان","العلوم",null,6,null,null,null,null,null,null,null,null,null,null,null,null,null,null,null,null,null,null,"3ب",null,null,null,null,null,null,"4أ",null,null,null,null,null,"4ب","4ب",null,null,"3أ",null,null,null,"4أ"]
[17,null,"سعيد الهمالي","العلوم",null,8,null,null,null,null,null,null,null,"5أ",null,null,null,null,null,null,null,"6ب",null,null,null,null,null,null,"6أ",null,null,"5أ",null,null,null,null,null,"6ب","5ب",null,null,"6أ",null,null,null,null,null,null,null,null,null,null,"5ب"]
[18,null,"عبدالسلام بن عامر","الحاسوب",null,6,null,null,null,null,null,null,null,null,null,null,null,"1أ",null,null,null,null,null,null,"1ب",null,null,null,null,null,null,null,null,null,null,null,null,null,"3ب",null,null,null,null,"3أ",null,"2أ",null,null,null,null,null,"2ب"]
[19,null,"احمد القعو","الحاسوب",null,6,null,null,null,null,null,null,null,null,null,"6أ","5أ",null,null,null,null,null,null,null,null,null,null,null,null,null,null,null,null,null,null,null,null,null,null,"6ب",null,null,null,null,"4أ",null,null,null,null,"5ب",null,null,"4ب"]
[20,null,"خالد الحوات","الاجتماعيات",null,8,null,null,null,null,null,null,null,null,null,null,null,null,"4أ",null,null,null,null,null,null,"5ب",null,null,null,null,null,"6أ","5أ",null,null,null,null,null,null,"4ب",null,null,null,null,null,"6أ",null,null,null,null,"6ب",null,"6ب"]
[21,null,"حسين الشريف","التربية الفنية",null,6,null,null,null,null,null,null,null,null,null,null,null,"2أ",null,null,null,null,null,"2ب",null,null,null,null,null,"1أ","3أ",null,null,null,null,null,null,"3ب",null,null,null,null,null,null,null,null,null,null,null,null,"1ب"]
[22,1,"سراج حريبش","التربية الفنية",null,4,null,null,null,null,null,null,null,null,null,null,"4أ",null,"5أ",null,null,null,null,"5ب","4ب"]
[23,1,"ايمن عبدالدايم","التربية البدنية",null,8,null,null,null,null,null,null,null,null,null,null,null,null,"3أ",null,null,null,null,null,null,"3ب",null,null,null,null,null,"2أ",null,null,null,null,null,null,"1ب",null,null,null,null,null,null,"1أ","4أ",null,null,null,null,null,"2ب","4ب"]
[24,1,"عبدالباسط شخطور","التربية البدنية",null,4,null,null,null,null,null,null,null,null,null,null,null,null,"6أ",null,null,null,null,null,null,"6ب",null,null,null,null,null,null,null,null,null,null,null,null,null,null,null,null,null,"5أ",null,null,null,null,null,null,null,null,null,"5ب"]
["مجمـــــــوع الحـــــصص ",null,null,null,null,null,{"$f":"COUNTA(G4:G27)","v":0},0,0,0,0,0,0,6,6,6,6,6,4,0,6,6,6,6,6,3,0,6,6,6,6,6,2,0,6,6,6,6,{"$f":"COUNTA(AM4:AM27)","v":6},2,0,6,6,6,6,6,2,0,6,6,6,6,6,3,0]